fUST/lending_fUST_20260607
["ID","MTS","AMOUNT","RATE_DAILY","PERIOD"]
[424315711,1780764475000,-148.05030133,0.00014129,2]
[424315712,1780764529000,-3931.5790666,0.00013542,2]
[424315714,1780764543000,-1561.345295,0.00013542,2]
[424315721,1780764596000,-5000.0,0.00013542,2]
[424315877,1780764649000,-500.0,0.00014128,2]
[424315873,1780764649000,-300.0,0.00014127,2]
[424315875,1780764649000,-500.0,0.00014128,2]
[424315876,1780764649000,-500.0,0.00014128,2]
[424315868,1780764649000,-156.0,0.00013599,2]
[424315872,1780764649000,-166.66666667,0.00014028,2]
[424315871,1780764649000,-199.388035,0.00013699,2]
[424315870,1780764649000,-717.35530821,0.00013192,2]
[424315878,1780764649000,-500.0,0.00014128,2]
[424315874,1780764649000,-4063.46912572,0.00014128,2]
[424315879,1780764649000,-500.0,0.00014128,2]
[424315869,1780764649000,-19321.08250199,0.00013192,2]
[424315881,1780764649000,-500.0,0.00014128,2]
[424315880,1780764649000,-500.0,0.00014128,2]
[424315891,1780764649000,-500.0,0.00014128,2]
[424315889,1780764649000,-193.93431343,0.00014128,2]
[424315885,1780764649000,-500.0,0.00014128,2]
[424315886,1780764649000,-500.0,0.00014128,2]
[424315890,1780764649000,-500.0,0.00014128,2]
[424315883,1780764649000,-500.0,0.00014128,2]
[424315888,1780764649000,-500.0,0.00014128,2]
[424315887,1780764649000,-500.0,0.00014128,2]
[424315882,1780764649000,-500.0,0.00014128,2]
[424315884,1780764649000,-500.0,0.00014128,2]
[424315931,1780764650000,-300.0,0.00014413,2]
[424315929,1780764650000,-300.0,0.00014413,2]
[424315933,1780764650000,-300.0,0.00014413,2]
[424315932,1780764650000,-300.0,0.00014413,2]
[424315928,1780764650000,-300.0,0.00014413,2]
[424315922,1780764650000,-300.0,0.00014413,2]
[424315926,1780764650000,-300.0,0.00014413,2]
[424315923,1780764650000,-300.0,0.00014413,2]
[424315925,1780764650000,-300.0,0.00014413,2]
[424315930,1780764650000,-300.0,0.00014413,2]
[424315927,1780764650000,-300.0,0.00014413,2]
[424315934,1780764650000,-300.0,0.00014413,2]
[424315948,1780764650000,-10000.0,0.00016051,2]
[424315936,1780764650000,-500.0,0.00014416,2]
[424315935,1780764650000,-300.0,0.00014413,2]
[424315938,1780764650000,-500.0,0.00014416,2]
[424315921,1780764650000,-300.0,0.00014413,2]
[424315940,1780764650000,-213.29139022,0.00014416,2]
[424315939,1780764650000,-286.70860978,0.00014416,2]
[424315942,1780764650000,-600.0,0.000147,2]
[424315941,1780764650000,-166.0944,0.00014417,2]
[424315944,1780764650000,-5000.0,0.00015633,2]
[424315943,1780764650000,-18600.8484777,0.00015633,2]
[424315945,1780764650000,-5000.0,0.00015633,2]
[424315946,1780764650000,-5000.0,0.00015633,2]
[424315937,1780764650000,-500.0,0.00014416,2]
[424315920,1780764650000,-151.0,0.00014292,2]
[424315915,1780764650000,-500.0,0.00014128,2]
[424315919,1780764650000,-500.0,0.0001413,2]
[424315947,1780764650000,-219.72599459,0.0001589,3]
[424315893,1780764650000,-500.0,0.00014128,2]
[424315901,1780764650000,-444.145103,0.00014128,2]
[424315894,1780764650000,-500.0,0.00014128,2]
[424315892,1780764650000,-398.38222195,0.00014128,2]
[424315895,1780764650000,-500.0,0.00014128,2]
[424315896,1780764650000,-500.0,0.00014128,2]
[424315897,1780764650000,-500.0,0.00014128,2]
[424315898,1780764650000,-500.0,0.00014128,2]
[424315899,1780764650000,-500.0,0.00014128,2]
[424315900,1780764650000,-55.854897,0.00014128,2]
[424315902,1780764650000,-500.0,0.00014128,2]
[424315924,1780764650000,-300.0,0.00014413,2]
[424315903,1780764650000,-500.0,0.00014128,2]
[424315912,1780764650000,-500.0,0.00014128,2]
[424315909,1780764650000,-500.0,0.00014128,2]
[424315908,1780764650000,-474.61808047,0.00014128,2]
[424315907,1780764650000,-228.80337492,0.00014128,2]
[424315911,1780764650000,-500.0,0.00014128,2]
[424315910,1780764650000,-500.0,0.00014128,2]
[424315913,1780764650000,-500.0,0.00014128,2]
[424315906,1780764650000,-500.0,0.00014128,2]
[424315914,1780764650000,-500.0,0.00014128,2]
[424315917,1780764650000,-500.0,0.00014128,2]
[424315918,1780764650000,-250.0,0.00014128,2]
[424315916,1780764650000,-500.0,0.00014128,2]
[424315905,1780764650000,-500.0,0.00014128,2]
[424315950,1780764650000,-2131.93,0.00016151,2]
[424315904,1780764650000,-500.0,0.00014128,2]
[424315951,1780764650000,-720.0,0.0001617,2]
[424315979,1780764650000,-528.07228931,0.00017751,2]
[424315984,1780764650000,-152.00527939,0.00017944,2]
[424315985,1780764650000,-173.32424898,0.00017944,2]
[424315989,1780764650000,-353.31410211,0.00017999,2]
[424315986,1780764650000,-160.39867257,0.00017945,2]
[424315988,1780764650000,-500.0,0.00017999,2]
[424315990,1780764650000,-341.69328667,0.00017999,2]
[424315991,1780764650000,-151.37843209,0.00017999,2]
[424315994,1780764650000,-255.64621193,0.00018005,2]
[424315993,1780764650000,-158.52770081,0.00017999,2]
[424315995,1780764650000,-500.32655012,0.0001801,2]
[424315992,1780764650000,-386.68609488,0.00017999,2]
[424315977,1780764650000,-562.0803572,0.00017547,7]
[424316008,1780764650000,-163.71115721,0.0001801,2]
[424315998,1780764650000,-339.47813294,0.0001801,2]
[424315999,1780764650000,-195.80595491,0.0001801,2]
[424316000,1780764650000,-348.66692044,0.0001801,2]
[424315997,1780764650000,-337.24773958,0.0001801,2]
[424316002,1780764650000,-375.42264209,0.0001801,2]
[424316004,1780764650000,-150.32952473,0.0001801,2]
[424316003,1780764650000,-165.22955194,0.0001801,2]
[424316007,1780764650000,-151.93154235,0.0001801,2]
[424316001,1780764650000,-318.28748474,0.0001801,2]
[424316006,1780764650000,-377.73575982,0.0001801,2]
[424316005,1780764650000,-152.88354184,0.0001801,2]
[424315949,1780764650000,-210.62633607,0.00016147,2]
[424315996,1780764650000,-551.39341039,0.0001801,2]
[424315978,1780764650000,-500.0,0.00017751,2]
[424315987,1780764650000,-402.2753629,0.00017989,2]
[424315976,1780764650000,-203.75233319,0.00017187,2]
[424315952,1780764650000,-166.0944,0.00016217,3]
[424315956,1780764650000,-152.0,0.00016378,2]
[424315955,1780764650000,-152.0,0.00016378,2]
[424315953,1780764650000,-562.0803572,0.00016247,7]
[424315954,1780764650000,-500.0,0.0001629,2]
[424315960,1780764650000,-200.0,0.00016986,3]
[424315957,1780764650000,-180.71773383,0.0001641,2]
[424315959,1780764650000,-1000.0,0.00016851,2]
[424315958,1780764650000,-562.0803572,0.00016572,7]
[424315975,1780764650000,-188.86787991,0.00017187,2]
[424315962,1780764650000,-375.13545734,0.00017059,7]
[424315964,1780764650000,-159.19028031,0.00017123,2]
[424315972,1780764650000,-174.33346022,0.00017187,2]
[424315971,1780764650000,-169.73906647,0.00017187,2]
[424315961,1780764650000,-186.94489986,0.00017059,7]
[424315966,1780764650000,-500.0,0.00017148,2]
[424315983,1780764650000,-388.44784081,0.00017944,2]
[424315963,1780764650000,-198.80327127,0.00017123,2]
[424315974,1780764650000,-187.71132104,0.00017187,2]
[424315981,1780764650000,-397.60654254,0.00017944,2]
[424315980,1780764650000,-864.0,0.00017787,2]
[424315982,1780764650000,-318.38056063,0.00017944,2]
[424315970,1780764650000,-168.62386979,0.00017187,2]
[424315968,1780764650000,-170.84664334,0.00017176,2]
[424315969,1780764650000,-193.34304744,0.00017176,2]
[424315967,1780764650000,-176.65705106,0.00017176,2]
[424315965,1780764650000,-194.22392041,0.00017123,2]
[424315973,1780764650000,-159.14374237,0.00017187,2]
[424316014,1780764651000,-500.0,0.00018098,2]
[424316013,1780764651000,-201.0,0.00018082,3]
[424316016,1780764651000,-156.0,0.00018267,2]
[424316018,1780764651000,-241.32589257,0.00018401,2]
[424316012,1780764651000,-173.9747041,0.00018027,30]
[424316011,1780764651000,-166.0944,0.00018017,5]
[424316010,1780764651000,-235.8602007,0.0001801,2]
[424316009,1780764651000,-407.50466637,0.0001801,2]
[424316019,1780764651000,-163.45,0.00018449,3]
[424316017,1780764651000,-325.29192089,0.0001838,2]
[424316020,1780764651000,-899.01,0.00018449,3]
[424316015,1780764651000,-562.08035724,0.00018197,7]
[424316021,1780764651000,-449.51,0.00018449,3]
[424316032,1780764651000,-0.00132514,0.00018459,2]
[424316029,1780764651000,-275.79946348,0.00017436,2]
[424316031,1780764651000,-830.77396348,0.00018459,2]
[424316030,1780764651000,-588.20053652,0.00017436,2]
[424316028,1780764651000,-5593.44643388,0.00018459,2]
[424316022,1780764651000,-224.75,0.00018449,3]
[424316033,1780764651000,-21385.21921626,0.00018459,2]
[424316026,1780764651000,-400.0,0.0001585,2]
[424316025,1780764651000,-600.0,0.0001441,2]
[424316023,1780764651000,-674.28,0.00018449,3]
[424316024,1780764651000,-87096.74878005,0.00018459,2]
[424316027,1780764651000,-320.0,0.0001585,2]
[424316035,1780765033000,-538.80975211,0.00013356,2]
[424316036,1780765047000,-538.80975211,0.00013356,2]
[424316037,1780765061000,-326.86196418,0.00013356,2]
[424316038,1780765075000,-245.5185316,0.00013356,2]
[424316039,1780765128000,-500.0,0.00013448,2]
[424316040,1780765141000,-500.0,0.00013448,2]
[424316041,1780765156000,-500.0,0.00013448,2]
[424316042,1780765169000,-500.0,0.00013448,2]
[424316043,1780765183000,-500.0,0.00013448,2]
[424316044,1780765197000,-500.0,0.00013448,2]
[424316047,1780765539000,-500.0,0.00013393,2]
[424316048,1780765541000,-357.26982633,0.00013393,2]
[424316049,1780765553000,-74.73017367,0.00013393,2]
[424316051,1780765607000,-300.0,0.00013393,2]
[424316053,1780765628000,-43.60359316,0.00013394,2]
[424316052,1780765628000,-354.88159038,0.00013394,2]
[424316054,1780765660000,-196.75366354,0.00013394,2]
[424316055,1780765713000,-500.0,0.00013394,2]
[424316056,1780765766000,-500.0,0.00013394,2]
[424316065,1780765781000,-500.0,0.00013447,2]
[424316057,1780765781000,-40.9588151,0.00013394,2]
[424316059,1780765781000,-3693.61801451,0.00013395,2]
[424316061,1780765781000,-500.0,0.00013447,2]
[424316062,1780765781000,-500.0,0.00013447,2]
[424316063,1780765781000,-500.0,0.00013447,2]
[424316060,1780765781000,-258.2209517,0.00013447,2]
[424316064,1780765781000,-500.0,0.00013447,2]
[424316058,1780765781000,-500.0,0.00013394,2]
[424316066,1780765781000,-500.0,0.00013447,2]
[424316068,1780765781000,-462.94586349,0.00013447,2]
[424316069,1780765781000,-500.0,0.00013447,2]
[424316071,1780765781000,-500.0,0.00013447,2]
[424316070,1780765781000,-500.0,0.00013447,2]
[424316072,1780765781000,-500.0,0.00013447,2]
[424316073,1780765781000,-500.0,0.00013447,2]
[424316074,1780765781000,-500.0,0.00013448,2]
[424316075,1780765781000,-392.07976699,0.00013448,2]
[424316076,1780765781000,-3463.86713876,0.00013448,2]
[424316067,1780765781000,-500.0,0.00013447,2]
[424316077,1780765826000,-300.0,0.00013447,2]
[424316093,1780765831000,-1166.7211725,0.00013448,2]
[424316086,1780765831000,-433.45811007,0.00013448,2]
[424316099,1780765831000,-93.35886308,0.00013448,2]
[424316097,1780765831000,-3399.82071743,0.00013448,2]
[424316116,1780765838000,-300.0,0.00014774,2]
[424316131,1780765838000,-152.0,0.00016171,2]
[424316122,1780765838000,-300.0,0.00014774,2]
[424316128,1780765838000,-214.30337226,0.00015437,2]
[424316127,1780765838000,-600.0,0.00015068,2]
[424316125,1780765838000,-300.0,0.00014774,2]
[424316123,1780765838000,-300.0,0.00014774,2]
[424316126,1780765838000,-277.4671013,0.00014962,2]
[424316124,1780765838000,-300.0,0.00014774,2]
[424316121,1780765838000,-300.0,0.00014774,2]
[424316118,1780765838000,-300.0,0.00014774,2]
[424316115,1780765838000,-300.0,0.00014774,2]
[424316111,1780765838000,-300.0,0.00014774,2]
[424316114,1780765838000,-300.0,0.00014774,2]
[424316117,1780765838000,-300.0,0.00014774,2]
[424316113,1780765838000,-300.0,0.00014774,2]
[424316109,1780765838000,-538.80975211,0.00014097,2]
[424316120,1780765838000,-300.0,0.00014774,2]
[424316112,1780765838000,-300.0,0.00014774,2]
[424316110,1780765838000,-260.0,0.0001474,2]
[424316108,1780765838000,-8253.31,0.00013633,2]
[424316107,1780765838000,-5000.0,0.00013448,2]
[424316106,1780765838000,-4906.64113692,0.00013448,2]
[424316129,1780765838000,-267.2,0.00015801,2]
[424316119,1780765838000,-300.0,0.00014774,2]
[424316130,1780765838000,-187.0,0.0001589,3]
[424316134,1780765838000,-500.0,0.00016438,2]
[424316132,1780765838000,-1000.0,0.00016437,2]
[424316151,1780765838000,-500.0,0.00017875,7]
[424316156,1780765838000,-638.47524953,0.00017902,2]
[424316157,1780765838000,-167022.64714247,0.00017902,2]
[424316153,1780765838000,-5262.32562241,0.00017902,2]
[424316155,1780765838000,-7922.16607312,0.00017902,2]
[424316133,1780765838000,-500.0,0.00016438,2]
[424316149,1780765838000,-500.0,0.00017875,7]
[424316158,1780765838000,-148988.71681069,0.00017902,2]
[424316148,1780765838000,-698.0,0.00017826,2]
[424316147,1780765838000,-250.0,0.00017293,2]
[424316150,1780765838000,-500.0,0.00017875,7]
[424316143,1780765838000,-209.20015226,0.00017173,2]
[424316152,1780765838000,-266.77983781,0.00017875,7]
[424316141,1780765838000,-211.98846127,0.00017173,2]
[424316138,1780765838000,-151.09430393,0.00017166,2]
[424316139,1780765838000,-180.11790743,0.00017166,2]
[424316142,1780765838000,-203.68687976,0.00017173,2]
[424316140,1780765838000,-191.02833638,0.00017166,2]
[424316154,1780765838000,-13962.58112827,0.00017902,2]
[424316146,1780765838000,-3693.61801447,0.00017181,2]
[424316137,1780765838000,-500.0,0.00017148,2]
[424316145,1780765838000,-190.97249085,0.00017178,2]
[424316136,1780765838000,-167.0,0.00016986,3]
[424316135,1780765838000,-720.0,0.00016575,2]
[424316144,1780765838000,-160.91014516,0.00017178,2]
[424316195,1780765843000,-41280.67623594,0.00017902,2]
[424316196,1780765843000,-326.55877297,0.00017902,2]
[424316202,1780765846000,-19402.6573646,0.00017902,2]
[424316201,1780765846000,-5000.0,0.00017723,2]
[424316203,1780765879000,-500.0,0.00014011,2]
[424316204,1780765893000,-547.55359971,0.00014011,2]
[424316205,1780766012000,5000.0,0.00023288,120]
[424316206,1780766086000,-171.21764612,0.0001401,2]
[424316207,1780766139000,-500.0,0.00014011,2]
[424316208,1780766153000,-500.0,0.00013698,2]
[424316209,1780766167000,-500.0,0.00013903,2]
[424316210,1780766168000,166.66666667,0.00024396,120]
[424316211,1780766181000,166.66666667,0.00024396,120]
[424316212,1780766181000,-650.0,0.00013903,2]
[424316213,1780766181000,166.66666667,0.00024396,120]
[424316214,1780766194000,-650.0,0.00013903,2]
[424316215,1780766208000,-258.96,0.00013903,2]
[424316216,1780766261000,-500.0,0.00013903,2]
[424316217,1780766275000,-500.0,0.00014011,2]
[424316218,1780766289000,-500.0,0.00014011,2]
[424316220,1780766353000,-168.809073,0.00014011,2]
[424316221,1780766527000,1208.22644526,7.6e-05,2]
[424316223,1780766631000,-365.72303933,9.999e-05,2]
[424316225,1780766685000,-500.0,9.999e-05,2]
[424316226,1780766699000,-500.0,9.999e-05,2]
[424316227,1780766752000,-500.0,9.999e-05,2]
[424316229,1780766806000,-500.0,9.999e-05,2]
[424316230,1780766859000,-500.0,9.999e-05,2]
[424316232,1780766859000,-500.0,9.999e-05,2]
[424316231,1780766859000,-500.0,9.999e-05,2]
[424316233,1780766859000,-500.0,9.999e-05,2]
[424316235,1780766859000,-500.0,9.999e-05,2]
[424316238,1780766859000,-216.8666969,9.999e-05,2]
[424316237,1780766859000,-408.15631458,9.999e-05,2]
[424316236,1780766859000,-91.84368542,9.999e-05,2]
[424316234,1780766859000,-227.08985917,9.999e-05,2]
[424316239,1780766912000,-283.1333031,9.999e-05,2]
[424316251,1780766948000,-300.0,0.00010198,2]
[424316249,1780766948000,-300.0,0.00010198,2]
[424316248,1780766948000,-300.0,0.00010198,2]
[424316246,1780766948000,-11483.14549635,0.0001,2]
[424316245,1780766948000,-200.92904523,0.0001,2]
[424316244,1780766948000,-18723.03524153,0.0001,2]
[424316247,1780766948000,-3126.62076067,0.00010098,2]
[424316241,1780766948000,-500.0,9.999e-05,2]
[424316242,1780766948000,-2143.17316841,0.0001,2]
[424316243,1780766948000,-1000.0,0.0001,2]
[424316240,1780766948000,-500.0,9.999e-05,2]
[424316253,1780766948000,-300.0,0.00010198,2]
[424316252,1780766948000,-300.0,0.00010198,2]
[424316259,1780766948000,-300.0,0.00010198,2]
[424316255,1780766948000,-300.0,0.00010198,2]
[424316258,1780766948000,-300.0,0.00010198,2]
[424316254,1780766948000,-300.0,0.00010198,2]
[424316256,1780766948000,-300.0,0.00010198,2]
[424316257,1780766948000,-300.0,0.00010198,2]
[424316260,1780766948000,-300.0,0.00010198,2]
[424316262,1780766948000,-300.0,0.00010198,2]
[424316263,1780766948000,-600.0,0.00010198,2]
[424316261,1780766948000,-300.0,0.00010198,2]
[424316264,1780766948000,-1420.60305103,0.00011,2]
[424316266,1780766948000,-2366.19541571,0.000115,2]
[424316265,1780766948000,-720.0,0.00011218,2]
[424316250,1780766948000,-300.0,0.00010198,2]
[424316275,1780766965000,-1152.68732302,0.000115,2]
[424316276,1780766966000,-576.29554687,0.000115,2]
[424316277,1780766979000,-1325.57098458,0.000115,2]
[424316292,1780767032000,-37333.67148794,0.00012,2]
[424316358,1780767038000,-232.65,0.00012329,2]
[424316360,1780767038000,-193.87,0.00012329,2]
[424316362,1780767038000,-161.56,0.00012329,2]
[424316364,1780767038000,-807.83,0.00012329,2]
[424316366,1780767038000,-1942.48030966,0.000125,2]
[424316373,1780767038000,-223.52901977,0.00013975,2]
[424316369,1780767038000,-331.18,0.000125,2]
[424316371,1780767038000,-720.0,0.00013463,2]
[424316374,1780767038000,-5000.0,0.00014011,2]
[424316398,1780767038000,-560.06790268,0.00015605,7]
[424316378,1780767038000,-2961.91527019,0.00014011,2]
[424316380,1780767038000,-500.0,0.00014772,2]
[424316382,1780767038000,-500.0,0.00014772,2]
[424316384,1780767038000,-500.0,0.00014772,2]
[424316394,1780767038000,-251.14816907,0.00015195,2]
[424316396,1780767038000,-500.0,0.00015605,7]
[424316356,1780767038000,-279.18,0.00012329,2]
[424316389,1780767038000,-3838.34544526,0.00015,2]
[424316391,1780767038000,-3110.0,0.00015,2]
[424316376,1780767038000,-5000.0,0.00014011,2]
[424316354,1780767038000,-335.01,0.00012329,2]
[424316342,1780767038000,-300.0,0.00012239,2]
[424316346,1780767038000,-300.0,0.00012239,2]
[424316387,1780767038000,-864.0,0.00014809,2]
[424316310,1780767038000,-60014.0895925,0.00012,2]
[424316312,1780767038000,-223.52901978,0.00012,2]
[424316314,1780767038000,-10698.98249012,0.000121,5]
[424316316,1780767038000,-600.0,0.00012239,2]
[424316318,1780767038000,-300.0,0.00012239,2]
[424316320,1780767038000,-300.0,0.00012239,2]
[424316324,1780767038000,-300.0,0.00012239,2]
[424316322,1780767038000,-300.0,0.00012239,2]
[424316326,1780767038000,-300.0,0.00012239,2]
[424316328,1780767038000,-300.0,0.00012239,2]
[424316341,1780767038000,-300.0,0.00012239,2]
[424316330,1780767038000,-300.0,0.00012239,2]
[424316332,1780767038000,-300.0,0.00012239,2]
[424316334,1780767038000,-300.0,0.00012239,2]
[424316336,1780767038000,-300.0,0.00012239,2]
[424316338,1780767038000,-300.0,0.00012239,2]
[424316348,1780767038000,-578.9,0.00012329,2]
[424316344,1780767038000,-300.0,0.00012239,2]
[424316350,1780767038000,-482.42,0.00012329,2]
[424316386,1780767038000,-500.0,0.00014772,2]
[424316352,1780767038000,-402.02,0.00012329,2]
[424316403,1780767038000,-223.52901977,0.0001595,2]
[424316439,1780767038000,-151.0,0.000178,2]
[424316448,1780767038000,-500.0,0.00017901,2]
[424316450,1780767038000,-500.0,0.00017901,2]
[424316452,1780767038000,-500.0,0.00017901,2]
[424316454,1780767038000,-500.0,0.00017901,2]
[424316460,1780767038000,-500.0,0.00017901,2]
[424316456,1780767038000,-500.0,0.00017901,2]
[424316458,1780767038000,-500.0,0.00017901,2]
[424316475,1780767038000,-500.0,0.00017901,2]
[424316437,1780767038000,-151.0,0.000178,2]
[424316462,1780767038000,-500.0,0.00017901,2]
[424316464,1780767038000,-500.0,0.00017901,2]
[424316466,1780767038000,-500.0,0.00017901,2]
[424316470,1780767038000,-500.0,0.00017901,2]
[424316471,1780767038000,-500.0,0.00017901,2]
[424316468,1780767038000,-500.0,0.00017901,2]
[424316479,1780767038000,-500.0,0.00017901,2]
[424316481,1780767038000,-500.0,0.00017901,2]
[424316483,1780767038000,-500.0,0.00017901,2]
[424316400,1780767038000,-152.0,0.0001566,2]
[424316474,1780767038000,-500.0,0.00017901,2]
[424316485,1780767038000,-500.0,0.00017901,2]
[424316477,1780767038000,-500.0,0.00017901,2]
[424316445,1780767038000,-151.0,0.000179,2]
[424316436,1780767038000,-211.5320255,0.00017178,2]
[424316406,1780767038000,-1000.0,0.0001629,2]
[424316407,1780767038000,-500.0,0.00016438,2]
[424316409,1780767038000,-500.0,0.00016438,2]
[424316415,1780767038000,-500.0,0.00016787,2]
[424316423,1780767038000,-166.0,0.00016904,3]
[424316411,1780767038000,-502.32203895,0.00016438,2]
[424316421,1780767038000,-49377.8120434,0.00016788,2]
[424316419,1780767038000,-295.0975718,0.00016788,2]
[424316417,1780767038000,-502.34012693,0.00016787,2]
[424316402,1780767038000,-185.0,0.00015808,3]
[424316413,1780767038000,-3088.6368561,0.00016636,2]
[424316427,1780767038000,-168.11004694,0.00017178,2]
[424316429,1780767038000,-171.92550274,0.00017178,2]
[424316430,1780767038000,-190.78961514,0.00017178,2]
[424316434,1780767038000,-183.31819179,0.00017178,2]
[424316432,1780767038000,-188.28013704,0.00017178,2]
[424316447,1780767038000,-151.0,0.000179,2]
[424316443,1780767038000,-513.75,0.00017802,2]
[424316425,1780767038000,-171.87524176,0.00017178,2]
[424316441,1780767038000,-487.0,0.00017802,2]
[424316560,1780767039000,-453.28291179,0.00018538,2]
[424316558,1780767039000,-263.44521857,0.00018538,2]
[424316564,1780767039000,-252.29738681,0.00018538,2]
[424316562,1780767039000,-463.87429963,0.00018538,2]
[424316572,1780767039000,-272.85192869,0.00018545,2]
[424316556,1780767039000,-208.34094904,0.00018492,2]
[424316568,1780767039000,-275.38258657,0.00018538,2]
[424316566,1780767039000,-264.21283469,0.00018538,2]
[424316574,1780767039000,-393.45569618,0.00018545,2]
[424316554,1780767039000,-204.32156527,0.00018492,2]
[424316552,1780767039000,-182.79809698,0.00018492,2]
[424316548,1780767039000,-500.0,0.0001835,2]
[424316570,1780767039000,-250.54920788,0.00018538,2]
[424316575,1780767039000,-461.57468697,0.00018545,2]
[424316587,1780767039000,-228.63604299,0.00018548,2]
[424316581,1780767039000,-437.99308244,0.00018545,2]
[424316580,1780767039000,-453.18914761,0.00018545,2]
[424316583,1780767039000,-254.80590306,0.00018545,2]
[424316589,1780767039000,-236.65768252,0.00018548,2]
[424316585,1780767039000,-190.59546897,0.00018548,2]
[424316600,1780767039000,-198.77322776,0.00018548,2]
[424316597,1780767039000,-231.05770431,0.00018548,2]
[424316595,1780767039000,-256.81431625,0.00018548,2]
[424316593,1780767039000,-293.58246918,0.00018548,2]
[424316599,1780767039000,-297.36773,0.00018548,2]
[424316591,1780767039000,-260.92011238,0.00018548,2]
[424316603,1780767039000,-168.46807236,0.00018548,2]
[424316604,1780767039000,-160.28257977,0.00018548,2]
[424316539,1780767039000,-381.57923028,0.00018002,2]
[424316578,1780767039000,-326.34325819,0.00018545,2]
[424316546,1780767039000,-163.51,0.00018313,2]
[424316487,1780767039000,-500.0,0.00017901,2]
[424316550,1780767039000,-210.17103215,0.00018492,2]
[424316490,1780767039000,-500.0,0.00017901,2]
[424316492,1780767039000,-500.0,0.00017901,2]
[424316500,1780767039000,-468.34883701,0.00017901,2]
[424316504,1780767039000,-500.0,0.00017901,2]
[424316496,1780767039000,-500.0,0.00017901,2]
[424316488,1780767039000,-500.0,0.00017901,2]
[424316502,1780767039000,-500.0,0.00017901,2]
[424316494,1780767039000,-500.0,0.00017901,2]
[424316606,1780767039000,-296.5918678,0.00018548,2]
[424316506,1780767039000,-500.0,0.00017901,2]
[424316517,1780767039000,-196.72784809,0.00017996,2]
[424316518,1780767039000,-230.78734349,0.00017996,2]
[424316508,1780767039000,-1000.0,0.00017919,2]
[424316510,1780767039000,-244.0,0.00017919,2]
[424316520,1780767039000,-163.1716291,0.00017996,2]
[424316522,1780767039000,-226.59457381,0.00017996,2]
[424316511,1780767039000,-223.52901977,0.00017925,2]
[424316513,1780767039000,-211.43313159,0.00017989,2]
[424316515,1780767039000,-231.93714981,0.00017989,2]
[424316524,1780767039000,-218.99654122,0.00017996,2]
[424316526,1780767039000,-167.0,0.00018,3]
[424316527,1780767039000,-343.75048352,0.00018001,2]
[424316531,1780767039000,-237.71105538,0.00018002,2]
[424316529,1780767039000,-241.36521774,0.00018001,2]
[424316533,1780767039000,-196.55016725,0.00018002,2]
[424316535,1780767039000,-336.22009387,0.00018002,2]
[424316537,1780767039000,-343.85100548,0.00018002,2]
[424316542,1780767039000,-366.63638357,0.00018002,2]
[424316540,1780767039000,-376.56027407,0.00018002,2]
[424316544,1780767039000,-435.47172252,0.00018115,2]
[424316608,1780767039000,-243.70781667,0.00018548,2]
[424316498,1780767039000,-500.0,0.00017901,2]
[424316614,1780767039000,-515.62572529,0.0001855,2]
[424316678,1780767039000,-604.37721571,0.00018904,2]
[424316705,1780767039000,-457.27208597,0.00018914,2]
[424316703,1780767039000,-160.17463355,0.00018914,2]
[424316697,1780767039000,-180.0,0.00018914,2]
[424316682,1780767039000,-384.81,0.00018904,2]
[424316691,1780767039000,-850.0,0.00018914,2]
[424316684,1780767039000,-695.81144944,0.0001891,2]
[424316695,1780767039000,-300.0,0.00018914,2]